bitfinex-derivatives/quotes_BTCF0:USTF0_20250309
["timestamp","ask_amount","ask_price","bid_price","bid_amount"]
[1741517284859,0.2028417,85077.0,85076.0,0.5702231]
[1741517285055,0.2028417,85077.0,85076.0,2.0702231]
[1741517285561,0.2028417,85077.0,85076.0,1.95266]
[1741517285759,0.2028417,85077.0,85076.0,1.6001]
[1741517286657,0.2028417,85077.0,85076.0,1.7176631]
[1741517287364,0.08528,85077.0,85076.0,2.0702231]
[1741517287562,0.08528,85077.0,85076.0,2.0937231]
[1741517288064,0.0852,85081.0,85079.0,0.0587789]
[1741517288367,0.2027562,85081.0,85080.0,0.2448575]
[1741517288562,0.3608,85082.0,85081.0,0.1175562]
[1741517288863,0.44592,85082.0,85081.0,0.5974162]
[1741517289062,0.17409614,85093.0,85081.0,2.34066]
[1741517289261,0.11772142,85090.0,85089.0,0.1175451]
[1741517289453,0.11772142,85090.0,85089.0,0.1689451]
[1741517289654,0.20276142,85090.0,85089.0,0.5215051]
[1741517289861,0.20276142,85090.0,85089.0,2.0215051]
[1741517290460,0.11772142,85090.0,85089.0,2.0215051]
[1741517290662,0.20264142,85090.0,85089.0,2.0215051]
[1741517290862,0.20264142,85090.0,85089.0,1.90396]
[1741517291059,0.56364142,85090.0,85089.0,1.90396]
[1741517291561,0.56384142,85090.0,85089.0,1.90396]
[1741517291761,0.56384142,85090.0,85089.0,1.5514]
[1741517292162,0.1175658,85074.0,85054.0,0.0587963]
[1741517292466,0.2027658,85074.0,85066.0,0.1175768]
[1741517292660,0.2027658,85074.0,85067.0,0.1028]
[1741517292861,0.2027658,85074.0,85068.0,0.1175737]
[1741517293165,0.2027658,85074.0,85073.0,1.50017632]
[1741517293354,0.2029658,85074.0,85073.0,1.50017632]
[1741517298469,0.2029658,85074.0,85073.0,0.00017632]
[1741517299572,0.1175797,85064.0,85063.0,1.5]
[1741517299775,0.2026197,85064.0,85063.0,1.5534]
[1741517300272,0.20308412,85064.0,85063.0,1.5534]
[1741517301172,0.08550442,85064.0,85063.0,1.5534]
[1741517301470,0.08578442,85064.0,85063.0,2.100641]
[1741517301667,0.00046442,85064.0,85063.0,2.151641]
[1741517301869,0.08578442,85064.0,85063.0,2.151641]
[1741517302072,0.08528,85066.0,85065.0,0.1175783]
[1741517302375,0.00017632,85072.0,85071.0,0.14107]
[1741517302568,0.20298492,85072.0,85071.0,0.19467]
[1741517302767,0.20298492,85072.0,85071.0,0.54723]
[1741517303371,0.20298492,85072.0,85071.0,0.42966]
[1741517303579,0.20298492,85072.0,85071.0,0.54723]
[1741517305479,0.20298492,85072.0,85071.0,0.42966]
[1741517306772,0.20298492,85072.0,85071.0,0.48186]
[1741517306974,0.20298492,85072.0,85071.0,0.59943]
[1741517307479,0.20298492,85072.0,85071.0,0.60072376]
[1741517307672,0.20298492,85072.0,85071.0,0.48315376]
[1741517308783,0.20298492,85072.0,85071.0,0.48444411]
[1741517309172,0.20298492,85072.0,85071.0,0.60201411]
[1741517310076,0.20298492,85072.0,85071.0,0.60330617]
[1741517310275,0.08541632,85072.0,85071.0,0.60330617]
[1741517310479,0.20298492,85072.0,85071.0,0.90330617]
[1741517310682,0.08541632,85072.0,85071.0,0.90330617]
[1741517311380,0.08541632,85072.0,85071.0,0.90459823]
[1741517311575,0.20298492,85072.0,85071.0,0.90459823]
[1741517312081,0.20298492,85072.0,85071.0,0.55203823]
[1741517312490,0.20298492,85072.0,85071.0,0.43576029]
[1741517313184,0.20262492,85072.0,85071.0,0.43576029]
[1741517313685,0.20262492,85072.0,85071.0,0.43666849]
[1741517314778,0.20262492,85072.0,85071.0,0.55423849]
[1741517314983,0.20262492,85072.0,85071.0,0.53073849]
[1741517315290,0.08505632,85072.0,85071.0,0.55423849]
[1741517316381,0.14262993,85073.0,85072.0,0.1410686]
[1741517316581,0.05790993,85073.0,85072.0,0.19813709]
[1741517316785,0.17409614,85075.0,85074.0,0.1175658]
[1741517317289,0.29166064,85075.0,85074.0,1.92576]
[1741517317479,0.29166064,85075.0,85074.0,2.0433258]
[1741517317682,0.29166064,85075.0,85074.0,2.05069429]
[1741517317980,0.17409614,85075.0,85074.0,2.05069429]
[1741517318903,0.29166064,85075.0,85074.0,2.05069429]
[1741517319090,0.29166064,85075.0,85074.0,2.05198147]
[1741517319794,0.29166064,85075.0,85074.0,2.23441567]
[1741517319996,0.65246064,85075.0,85074.0,1.91091567]
[1741517320294,0.75856064,85075.0,85074.0,1.91123409]
[1741517320499,0.76279838,85075.0,85074.0,1.91123409]
[1741517321198,0.58870224,85075.0,85074.0,1.91123409]
[1741517322506,0.58870224,85075.0,85074.0,1.55867409]
[1741517324501,0.93719039,85075.0,85074.0,1.55867409]
[1741517325495,0.93719039,85075.0,85074.0,1.55967826]
[1741517326000,0.93719039,85075.0,85074.0,1.56027969]
[1741517328407,0.8861201,85075.0,85074.0,1.56027969]
[1741517328703,0.5253201,85075.0,85074.0,1.56027969]
[1741517328898,0.8861201,85075.0,85074.0,1.56027969]
[1741517329208,1.3433556,85075.0,85038.0,0.3608]
[1741517329403,0.3608,85039.0,85017.0,0.55877741]
[1741517329698,0.4784239,85032.0,85017.0,0.61759931]
[1741517330004,0.4784239,85032.0,85031.0,1.91973449]
[1741517330192,0.48266164,85032.0,85031.0,1.91973449]
[1741517330397,0.56710164,85032.0,85031.0,1.91973449]
[1741517330907,0.5628639,85032.0,85031.0,1.91973449]
[1741517331298,0.5628639,85032.0,85031.0,1.85224729]
[1741517331299,0.7128639,85032.0,85031.0,1.85224729]
[1741517331702,1.1376639,85032.0,85031.0,1.85224729]
[1741517332203,1.02004,85032.0,85017.0,0.55877741]
[1741517332396,0.4784322,85026.0,85025.0,0.41387448]
[1741517332797,0.4784322,85026.0,85017.0,0.55877741]
[1741517332798,0.51511775,85026.0,85017.0,0.00096]
[1741517333002,0.51511775,85026.0,85003.0,0.1028]
[1741517333003,0.1176626,85004.0,85003.0,0.1028]
[1741517333203,0.5630226,85004.0,85003.0,0.1028]
[1741517333402,0.56734035,85004.0,85003.0,1.6028]
[1741517334001,0.56734035,85004.0,85003.0,1.60409233]
[1741517334205,0.92814035,85004.0,85003.0,1.60409233]
[1741517334594,0.81047775,85004.0,85003.0,1.60440662]
[1741517334803,0.81047775,85004.0,85003.0,1.62790662]
[1741517335003,0.72591775,85004.0,85003.0,1.60440662]
[1741517335308,0.92826035,85004.0,85003.0,1.60440662]
[1741517336010,0.92826035,85004.0,85003.0,1.55330662]
[1741517336812,1.03219506,85004.0,85003.0,1.55330662]
[1741517337313,1.03219506,85004.0,85003.0,1.50160662]
[1741517337314,1.25129506,85004.0,85003.0,1.50160662]
[1741517338110,1.25185506,85004.0,85003.0,1.50160662]
[1741517338311,0.82985246,85004.0,85003.0,1.50160662]
[1741517338610,0.91513246,85004.0,85003.0,1.52510662]
[1741517339507,1.03279506,85004.0,85003.0,1.52510662]
[1741517339910,1.02847731,85004.0,85003.0,1.52510662]
[1741517340298,1.02847731,85004.0,85003.0,1.5235]
[1741517340504,1.02847731,85004.0,85003.0,1.55639315]
[1741517340704,0.9245426,85004.0,85003.0,1.55639315]
[1741517341307,0.92887822,85004.0,85003.0,1.55639315]
[1741517341608,0.92897344,85004.0,85003.0,1.55671315]
[1741517342114,0.81131084,85004.0,85003.0,1.58021315]
[1741517342313,0.81131084,85004.0,85003.0,2.06034563]
[1741517342808,0.55669522,85004.0,85003.0,2.17800963]
[1741517343005,0.39465522,85004.0,85003.0,2.17800963]
[1741517343205,0.31185522,85004.0,85003.0,2.06034563]
[1741517343410,0.22609522,85004.0,85003.0,2.17800963]
[1741517343812,9.522e-05,85004.0,85003.0,2.53880963]
[1741517344008,0.0501,85028.0,85027.0,0.1176308]
[1741517344313,0.1361,85028.0,85004.0,0.35256]
[1741517344515,0.2036294,85028.0,85027.0,0.15107248]
[1741517344814,0.2036294,85028.0,85027.0,2.00363248]
[1741517344815,0.00428373,85028.0,85027.0,2.00363248]
[1741517345112,0.17322452,85030.0,85027.0,2.00363248]
[1741517345113,0.20943327,85036.0,85035.0,0.1176198]
[1741517345311,0.08616,85051.0,85035.0,0.78750082]
[1741517345615,0.36037877,85055.0,85054.0,0.0235]
[1741517345805,0.36037877,85055.0,85054.0,0.15107248]
[1741517346007,0.44657877,85055.0,85054.0,0.50363248]
[1741517346202,0.1176059,85045.0,85044.0,0.1028]
[1741517346409,0.1176073,85044.0,85043.0,0.00321315]
[1741517346613,0.1176073,85044.0,85036.0,0.00017643]
[1741517346614,0.117617,85037.0,85036.0,0.00017643]
[1741517346813,0.117617,85037.0,85021.0,0.1028]
[1741517346814,0.1176308,85027.0,85026.0,0.0235]
[1741517347110,0.117653,85011.0,85010.0,1.5]
[1741517347308,0.203893,85011.0,85010.0,1.62757248]
[1741517347503,0.203893,85011.0,85010.0,0.0235]
[1741517348108,0.308293,85011.0,85010.0,0.0235]
[1741517348419,0.1176613,85005.0,85004.0,0.051]
[1741517348609,0.4784613,85005.0,85004.0,0.051]
[1741517348811,0.5647413,85005.0,85004.0,0.051]
[1741517349207,0.117664,85003.0,85002.0,0.00017643]
[1741517349607,0.117664,85003.0,85002.0,0.05117643]
[1741517349816,0.171864,85003.0,85002.0,0.10497643]
[1741517350711,0.36140001,85005.0,85002.0,0.25604891]
[1741517350907,0.203984,85003.0,85002.0,0.29138131]
[1741517351109,0.203984,85003.0,85002.0,0.16380883]
[1741517351409,0.08632,85003.0,85002.0,0.31488131]
[1741517351613,0.08628,85003.0,85002.0,0.25604891]
[1741517351911,0.203944,85003.0,85002.0,0.12847643]
[1741517352115,0.203944,85003.0,85002.0,0.48103643]
[1741517352417,0.203944,85003.0,85002.0,0.12847643]
[1741517352608,0.203944,85003.0,85002.0,0.10497643]
[1741517352809,0.304644,85003.0,85002.0,0.05117643]
[1741517353108,0.058836,84998.0,84972.0,0.3608]
[1741517353307,0.3608,85006.0,84983.0,0.0235]
[1741517353308,0.3608,84989.0,84983.0,0.0235]
[1741517353613,0.1376,84988.0,84987.0,0.0235]
[1741517353811,0.2552848,84988.0,84987.0,0.0235]
[1741517354014,0.176554,84977.0,84976.0,0.1176978]
[1741517354313,0.1177014,84976.0,84973.0,0.24527748]
[1741517354513,0.1177042,84974.0,84973.0,0.470265]
[1741517354711,0.1177042,84974.0,84973.0,0.117705]
[1741517354914,0.1177042,84974.0,84973.0,0.62133748]
[1741517355311,0.1177042,84974.0,84973.0,0.62133808]
[1741517355621,0.1177042,84974.0,84973.0,2.12133808]
[1741517356514,0.1177042,84974.0,84973.0,2.00363248]
[1741517356914,0.1177042,84974.0,84973.0,1.65107248]
[1741517357109,0.1177042,84974.0,84973.0,2.00363248]
[1741517357527,0.1177042,84974.0,84973.0,1.5]
[1741517357718,0.1177042,84974.0,84973.0,2.00363248]
[1741517358015,0.12194904,84974.0,84973.0,2.12133808]
[1741517358218,0.12194904,84974.0,84973.0,1.5]
[1741517358813,0.48274904,84974.0,84973.0,1.5]
[1741517359211,0.70184904,84974.0,84973.0,1.5]
[1741517359408,0.70184904,84974.0,84948.0,0.0528]
[1741517359409,0.1177277,84957.0,84948.0,0.0528]
[1741517359606,0.2050877,84957.0,84946.0,0.1177425]
[1741517359809,0.2050877,84957.0,84944.0,0.27928258]
[1741517360109,0.09176484,84957.0,84956.0,0.98345696]
[1741517360414,0.09246646,84957.0,84956.0,2.48376916]
[1741517360821,0.00494646,84957.0,84956.0,2.48376916]
[1741517361717,0.00017656,84965.0,84964.0,0.117718]
[1741517361920,0.00017656,84965.0,84964.0,0.62959048]
[1741517362215,0.00017656,84965.0,84964.0,0.98215048]
[1741517362406,0.11789326,84965.0,84964.0,1.50160758]
[1741517362612,0.26065326,84965.0,84964.0,1.50160758]
[1741517363016,0.20605326,84965.0,84964.0,1.85416758]
[1741517363318,0.2076456,84965.0,84964.0,1.97188558]
[1741517363915,0.2076456,84965.0,84964.0,1.50160758]
[1741517364711,0.2076456,84965.0,84964.0,1.61932558]
[1741517365420,0.2076456,84965.0,84964.0,1.50160758]
[1741517365621,0.2076456,84965.0,84964.0,1.50289432]
[1741517365922,0.0899289,84965.0,84964.0,2.1242448]
[1741517366111,0.2076456,84965.0,84964.0,2.1785448]
[1741517366415,0.2076456,84965.0,84964.0,2.17886534]
[1741517368313,0.1194856,84965.0,84964.0,2.17886534]
[1741517368520,0.0017689,84965.0,84964.0,2.17886534]
[1741517369020,0.3608,84990.0,84964.0,2.06114734]
[1741517369217,0.11450184,84969.0,84968.0,0.32763418]
[1741517369418,0.11450184,84969.0,84968.0,0.1765617]
[1741517369618,0.11450184,84969.0,84968.0,2.18019418]
[1741517370212,0.0588542,84971.0,84970.0,0.1177097]
[1741517370528,0.0588542,84971.0,84970.0,0.26878218]
[1741517370824,0.0588542,84971.0,84970.0,0.62134218]
[1741517371123,0.0588542,84971.0,84970.0,0.67184218]
[1741517371525,0.0588542,84971.0,84970.0,0.40306]
[1741517371723,0.0588542,84971.0,84970.0,0.40434674]
[1741517372223,0.1107542,84971.0,84970.0,0.40434674]
[1741517372416,0.1107542,84971.0,84970.0,0.40466728]
[1741517373514,0.1107542,84971.0,84970.0,0.00160728]
[1741517373921,0.1655542,84971.0,84970.0,0.00160728]
[1741517374322,0.16986724,84971.0,84970.0,0.00160728]
[1741517374523,0.11101304,84971.0,84926.0,0.0588848]
[1741517374826,0.4785222,84961.0,84954.0,0.0588658]
[1741517375031,0.5667622,84961.0,84960.0,1.85273656]
[1741517375229,0.5667622,84961.0,84960.0,2.00380904]
[1741517375523,0.00431304,84970.0,84960.0,2.00380904]
[1741517375524,0.12191082,84970.0,84969.0,0.26878358]
[1741517375730,0.1177097,84970.0,84969.0,0.62134358]
[1741517376030,0.1177097,84970.0,84969.0,0.35256]
[1741517376215,0.1177097,84970.0,84969.0,2.12134358]
[1741517376418,0.1177097,84970.0,84969.0,2.22984358]
[1741517376724,0.1725097,84970.0,84969.0,2.1022711]
[1741517377120,0.00084,84971.0,84969.0,2.22984358]
[1741517377326,0.0548,84985.0,84976.0,0.1177014]
[1741517377515,0.08824,84986.0,84976.0,0.26877388]
[1741517377722,0.08824,84986.0,84976.0,0.62133388]
[1741517377923,0.1176921,84983.0,84976.0,2.12133388]
[1741517378122,0.08828,84984.0,84976.0,2.17683388]
[1741517378721,0.11787656,84977.0,84976.0,2.05913248]
[1741517378928,0.11787656,84977.0,84976.0,2.17683388]
[1741517379230,0.20615656,84977.0,84976.0,2.17683388]
[1741517379938,0.11787656,84977.0,84976.0,2.17683388]
[1741517380623,0.00017656,84977.0,84976.0,2.53763388]
[1741517381021,0.00017656,84977.0,84976.0,2.62575388]
[1741517381823,0.419634,85001.0,84985.0,0.0588442]
[1741517382022,0.3608,85001.0,85000.0,0.26874068]
[1741517382225,0.44892,85001.0,85000.0,0.26874068]
[1741517382425,0.5665868,85001.0,85000.0,0.26874068]
[1741517382918,0.5665868,85001.0,85000.0,0.1176682]
[1741517383227,0.1176779,84993.0,84992.0,0.00017656]
[1741517383430,0.5664779,84993.0,84992.0,0.00017656]
[1741517383624,0.5664779,84993.0,84992.0,1.50017656]
[1741517384023,0.6734779,84993.0,84992.0,1.50017656]
[1741517384218,0.3126779,84993.0,84992.0,1.50017656]
[1741517385534,0.3636779,84993.0,84992.0,1.50017656]
[1741517385729,0.3636779,84993.0,84992.0,0.00017656]
[1741517385934,0.0588468,84982.0,84975.0,0.0532]
[1741517386235,0.1177014,84977.0,84976.0,1.76877388]
[1741517386434,0.1177014,84977.0,84976.0,1.75787248]
[1741517386631,0.2208014,84977.0,84976.0,1.87557388]
[1741517387231,0.1693014,84977.0,84976.0,1.87557388]
[1741517388035,0.17361055,84977.0,84976.0,1.87557388]
[1741517388933,0.12201055,84977.0,84976.0,1.87557388]
[1741517389345,0.12200915,84977.0,84976.0,1.87557388]
[1741517389731,0.00430915,84977.0,84976.0,1.87557388]
[1741517390736,0.12200915,84977.0,84976.0,1.75787248]
[1741517390932,0.12200915,84977.0,84976.0,1.5]
[1741517391341,0.22570915,84977.0,84976.0,1.5]
[1741517391536,0.22570915,84977.0,84976.0,1.5526]
[1741517391731,0.22570915,84977.0,84976.0,1.5]
[1741517392332,0.31330915,84977.0,84976.0,1.6062]
[1741517393239,0.31330915,84977.0,84976.0,1.5]
[1741517393739,0.67410915,84977.0,84976.0,1.5]
[1741517397436,0.73135263,84977.0,84976.0,1.5]
[1741517402143,0.72704348,84977.0,84976.0,1.5]
[1741517403839,0.5521,84977.0,84954.0,0.0535]
[1741517404036,0.1177222,84961.0,84960.0,0.0235]
[1741517404237,0.5652422,84961.0,84960.0,0.052]
[1741517404454,0.5652422,84961.0,84960.0,0.20307248]
[1741517404851,0.5652422,84961.0,84960.0,1.70307248]
[1741517405050,0.56947474,84961.0,84960.0,1.70307248]
[1741517405249,0.93027474,84961.0,84960.0,1.5]
[1741517405953,0.81255254,84961.0,84960.0,1.65107248]
[1741517406153,0.20867474,84961.0,84960.0,1.65107248]
[1741517406361,0.20867474,84961.0,84960.0,1.5]
[1741517406659,0.20867474,84961.0,84960.0,1.5235]
[1741517406857,0.12195474,84961.0,84960.0,1.76879608]
[1741517407059,0.09083254,84961.0,84960.0,1.76879608]
[1741517407662,0.20855474,84961.0,84960.0,1.76879608]
[1741517408363,0.17921015,84961.0,84960.0,1.76879608]
[1741517408660,0.17921015,84961.0,84960.0,1.87669608]
[1741517409366,0.06148795,84961.0,84960.0,1.87669608]
[1741517409565,0.00990796,84980.0,84960.0,1.87669608]
[1741517409566,0.11786556,84985.0,84984.0,0.1176903]
[1741517409764,0.11786556,84985.0,84984.0,0.24526278]
[1741517409964,0.00017656,84985.0,84984.0,0.24526278]
[1741517410260,0.00017656,84985.0,84984.0,1.74526278]
[1741517410463,0.00017656,84985.0,84984.0,1.80146278]
[1741517410857,0.11786556,84985.0,84984.0,1.80146278]
[1741517411558,0.00017656,84985.0,84984.0,1.80146278]
[1741517411759,0.11786556,84985.0,84984.0,1.80146278]
[1741517415861,0.11786556,84985.0,84984.0,1.68377248]
[1741517416167,0.12499749,84985.0,84984.0,1.6738903]
[1741517418667,0.12499749,84985.0,84957.0,0.36144]
[1741517418668,0.1177208,84962.0,84957.0,0.36144]
[1741517418976,0.21137273,84962.0,84958.0,0.23782894]
[1741517419171,0.21137273,84962.0,84961.0,1.71130071]
[1741517419573,0.21137273,84962.0,84961.0,1.5]
[1741517419769,0.21137273,84962.0,84961.0,1.6177222]
[1741517419973,0.00713193,84962.0,84961.0,1.74529468]
[1741517420274,0.0588502,84979.0,84978.0,0.1176959]
[1741517420664,0.17671356,84985.0,84984.0,0.1176903]
[1741517420866,0.17671356,84985.0,84984.0,1.74526278]
[1741517421573,0.18114714,84985.0,84984.0,1.85466278]
[1741517422075,0.18114714,84985.0,84984.0,1.73697248]
[1741517422273,0.18114714,84985.0,84984.0,1.85466278]
[1741517423064,0.18114714,84985.0,84984.0,1.73697248]
[1741517424178,0.18114714,84985.0,84984.0,1.85466278]
[1741517424471,0.18114714,84985.0,84984.0,1.73697248]
[1741517424964,0.23334714,84985.0,84984.0,1.73697248]
[1741517425563,0.28804714,84985.0,84984.0,1.73697248]
[1741517426766,0.28804714,84985.0,84984.0,1.6094]
[1741517426970,0.28804714,84985.0,84984.0,1.5536]
[1741517427177,0.34444714,84985.0,84984.0,1.5536]
[1741517427969,0.34444714,84985.0,84984.0,1.5]
[1741517429672,0.1177167,84965.0,84964.0,0.1094]
[1741517429876,0.8393167,84965.0,84964.0,0.0538]
[1741517430079,0.84375028,84965.0,84964.0,1.5538]
[1741517430378,0.95805028,84965.0,84964.0,1.5538]
[1741517430880,0.96530089,84965.0,84964.0,1.5538]
[1741517431267,0.96530089,84965.0,84964.0,1.5]
[1741517432581,0.96530089,84965.0,84940.0,0.0006]
[1741517432582,1.00720555,84965.0,84940.0,0.0006]
[1741517432876,0.1177471,84943.0,84942.0,0.12507108]
[1741517433076,0.1177541,84938.0,84930.0,0.3608]
[1741517433378,0.36156,84943.0,84942.0,0.1177485]
[1741517433577,0.36156,84943.0,84941.0,0.1177485]
[1741517433578,0.0588744,84942.0,84941.0,0.1177485]
[1741517433780,0.37248419,84943.0,84942.0,0.35702098]
[1741517433972,0.57803129,84943.0,84942.0,0.1117]
[1741517434178,0.49023129,84943.0,84942.0,1.7294485]
[1741517434477,0.01168419,84943.0,84942.0,1.85702098]
[1741517434872,0.12943129,84943.0,84942.0,1.85816835]
[1741517435071,0.1177471,84943.0,84942.0,1.74041985]
[1741517435278,0.1177471,84943.0,84942.0,1.61284737]
[1741517435279,0.4785471,84943.0,84942.0,1.61284737]
[1741517435671,0.49023129,84943.0,84942.0,1.55864737]
[1741517435874,0.49023129,84943.0,84942.0,1.50114737]
[1741517436884,0.64023129,84943.0,84942.0,1.50114737]
[1741517437086,0.72823129,84943.0,84942.0,1.50114737]
[1741517437278,0.79729129,84943.0,84942.0,1.50114737]
[1741517437584,1.21087129,84943.0,84942.0,1.50114737]
[1741517437784,0.0588819,84931.0,84900.0,0.1]
[1741517437982,0.117786,84915.0,84900.0,0.1]
[1741517438176,0.4785957,84908.0,84907.0,0.20572509]
[1741517438375,0.4785957,84908.0,84900.0,0.1]
[1741517438376,0.7859757,84908.0,84900.0,0.09307979]
[1741517438679,0.1178151,84894.0,84893.0,0.43123783]
[1741517438875,0.7742551,84894.0,84893.0,0.34473783]
[1741517439386,0.78621929,84894.0,84893.0,1.84473783]
[1741517439578,0.78621929,84894.0,84893.0,2.50762681]
[1741517439579,0.01168419,84894.0,84893.0,2.50762681]
[1741517439777,0.00809898,84903.0,84902.0,0.117804]
[1741517439978,0.1178151,84894.0,84893.0,0.45873783]
[1741517440185,0.1178151,84894.0,84893.0,0.40143783]
[1741517440381,0.1178151,84894.0,84893.0,0.34473783]
[1741517440583,0.1178401,84876.0,84875.0,0.1751413]
[1741517440784,0.09936,84877.0,84876.0,0.12757248]
[1741517440982,0.09936,84877.0,84876.0,0.1178401]
[1741517441190,0.09977667,84884.0,84883.0,0.1178304]
[1741517441580,0.00017667,84884.0,84883.0,0.24540288]
[1741517441786,0.3608,84894.0,84870.0,0.59774382]
[1741517442091,0.1178342,84881.0,84880.0,0.1178344]
[1741517442290,0.1767673,84875.0,84874.0,0.1178389]
[1741517442478,0.1767673,84875.0,84870.0,0.12635202]
[1741517442479,0.117847,84871.0,84870.0,0.12635202]
[1741517442681,0.117847,84871.0,84870.0,0.00850502]
[1741517443890,0.12521635,84871.0,84870.0,0.00850502]
[1741517444089,0.0589242,84870.0,84862.0,0.00017667]
[1741517444290,0.4786581,84863.0,84862.0,0.00017667]
[1741517444492,0.1178748,84852.0,84851.0,0.1178723]
[1741517444690,0.478671,84854.0,84853.0,0.117872]
[1741517444987,0.1178734,84852.0,84851.0,0.20750425]
[1741517445189,0.1178748,84851.0,84850.0,0.1179762]
[1741517445386,0.1178748,84851.0,84850.0,0.0001]
[1741517445689,0.2201148,84851.0,84850.0,1.5001]
[1741517446391,0.3608,84852.0,84834.0,0.3608]
[1741517446587,0.3608,84852.0,84830.0,0.01463694]
[1741517446588,0.3608,84845.0,84844.0,0.1178845]
[1741517446886,0.10244,84851.0,84850.0,0.1178762]
[1741517446887,0.00737158,84851.0,84850.0,0.1178762]
[1741517447091,0.00809898,84863.0,84858.0,0.1178651]
[1741517447392,0.00809898,84863.0,84858.0,1.98073452]
[1741517447590,0.3608,84882.0,84858.0,1.86286942]
[1741517447893,0.10312,84881.0,84880.0,0.1178345]
[1741517448191,0.1178332,84881.0,84880.0,0.0569]
[1741517448387,0.2212732,84881.0,84880.0,0.00206942]
[1741517448591,0.2212732,84881.0,84880.0,1.50206942]
[1741517449093,0.2212732,84881.0,84880.0,1.49972333]
[1741517449294,0.3353732,84881.0,84880.0,1.49972333]
[1741517449483,0.2788732,84881.0,84880.0,1.49972333]
[1741517449684,0.0589199,84877.0,84872.0,0.00017678]
[1741517449885,0.1042,84881.0,84873.0,0.0589221]
[1741517450190,0.1178415,84875.0,84874.0,0.0569]
[1741517450583,0.1771415,84875.0,84874.0,0.0569]
[1741517450786,0.1178415,84875.0,84874.0,0.1747429]
[1741517450989,0.1178415,84875.0,84874.0,0.1142]
[1741517451189,0.1178568,84864.0,84857.0,0.1178655]
[1741517451383,0.4786568,84864.0,84851.0,0.0589372]
[1741517451695,0.1768092,84854.0,84853.0,0.117871]
[1741517451883,0.117872,84853.0,84852.0,0.0558]
[1741517452289,0.1178929,84838.0,84837.0,0.0589465]
[1741517452484,0.11781937,84838.0,84837.0,0.1147465]
[1741517452794,0.11781937,84838.0,84835.0,0.00176812]
[1741517453105,0.11662117,84836.0,84835.0,0.11966382]
[1741517453490,0.3608,84841.0,84835.0,0.00176812]
[1741517453794,0.1768426,84838.0,84837.0,0.1768348]
[1741517453990,0.0589469,84838.0,84837.0,0.1768348]
[1741517454192,0.1178957,84836.0,84835.0,0.00176812]
[1741517454386,0.1179026,84831.0,84830.0,0.01463694]
[1741517454782,0.49145295,84831.0,84830.0,0.01463694]
[1741517454987,0.64152837,84831.0,84830.0,4e-08]
[1741517455293,0.86062837,84831.0,84830.0,4e-08]
[1741517455483,0.98580298,84831.0,84830.0,4e-08]
[1741517455687,0.99580809,84831.0,84830.0,1.27989724]
[1741517455885,0.99580809,84831.0,84802.0,0.1174]
[1741517455886,0.1179415,84803.0,84802.0,0.0618]
[1741517456089,0.2213815,84803.0,84802.0,0.0655]
[1741517456394,0.12284548,84803.0,84802.0,0.0037]
[1741517456595,0.49364548,84803.0,84802.0,1e-07]
[1741517456798,0.18164588,84803.0,84801.0,1.5006]
[1741517457096,0.18164588,84803.0,84802.0,0.0583]
[1741517457097,0.19690302,84803.0,84802.0,0.0583]
[1741517457294,0.19690302,84803.0,84782.0,0.0562]
[1741517457295,0.1179443,84801.0,84791.0,0.062]
[1741517457487,0.24241262,84803.0,84800.0,1.6]
[1741517457488,0.0586,84802.0,84800.0,1.6]
[1741517457691,0.02016152,84803.0,84802.0,0.1179429]
[1741517457894,0.02016152,84803.0,84801.0,0.1179443]
[1741517457895,0.1179429,84802.0,84801.0,0.1203]
[1741517458196,0.1179443,84801.0,84800.0,0.1]
[1741517458390,0.5961443,84801.0,84800.0,0.1]
[1741517458694,0.7461443,84801.0,84800.0,0.1]
[1741517459086,0.61630582,84801.0,84800.0,0.10139221]
[1741517459288,0.61630582,84801.0,84800.0,0.06450886]
[1741517459491,0.61638004,84801.0,84800.0,0.06450886]
[1741517459991,0.55778004,84801.0,84800.0,0.06450886]
[1741517460591,0.38103574,84801.0,84787.0,0.06499907]
[1741517460795,0.38103574,84801.0,84800.0,0.1179457]
[1741517461099,0.0589534,84828.0,84800.0,0.1179457]
[1741517461100,0.3608,84814.0,84800.0,0.3608]
[1741517461397,0.15192021,84827.0,84826.0,0.1179096]
[1741517461792,0.20823327,84838.0,84837.0,0.1178943]
[1741517462187,0.117906,84829.0,84828.0,0.1179042]
[1741517462394,0.56979327,84838.0,84837.0,0.1178943]
[1741517462599,0.00017689,84837.0,84827.0,0.06800333]
[1741517462895,0.00017689,84837.0,84820.0,0.32469689]
[1741517462896,0.1179165,84821.0,84820.0,0.00017689]
[1741517463102,0.5863965,84821.0,84820.0,0.00017689]
[1741517463297,0.0589678,84808.0,84792.0,0.18319725]
[1741517463492,0.3608,84799.0,84798.0,0.1179485]
[1741517464006,0.3608,84806.0,84798.0,0.15]
[1741517464297,0.3608,84806.0,84792.0,0.18319725]
[1741517464298,0.3608,84812.0,84792.0,0.18319725]
[1741517464492,0.17708069,84810.0,84809.0,0.1179304]
[1741517464897,0.00017689,84810.0,84809.0,0.1179304]
[1741517465194,0.11810869,84810.0,84809.0,0.1186]
[1741517465395,0.11810869,84810.0,84809.0,0.2365332]
[1741517465597,0.11810869,84810.0,84809.0,1.6186]
[1741517465794,0.11810869,84810.0,84809.0,1.5]
[1741517466194,0.17470869,84810.0,84809.0,1.5]
[1741517466396,0.17470869,84810.0,84809.0,1.6179332]
[1741517466603,0.17470869,84810.0,84809.0,1.50107368]
[1741517466799,0.00017689,84810.0,84809.0,1.61900688]
[1741517466994,0.11810869,84810.0,84809.0,1.61900688]
[1741517467200,0.11810869,84810.0,84809.0,1.68160688]
[1741517467504,0.11810869,84810.0,84809.0,1.62077368]
[1741517467701,0.11810869,84810.0,84809.0,1.73870688]
[1741517468395,0.11810869,84810.0,84809.0,1.62077368]
[1741517468595,0.11810869,84810.0,84809.0,1.62124895]
[1741517468791,0.11810869,84810.0,84809.0,1.50154895]
[1741517468996,0.11810869,84810.0,84809.0,0.00154895]
[1741517469402,0.23620869,84810.0,84809.0,0.00154895]
[1741517470002,0.23620869,84810.0,84809.0,1.50154895]
[1741517470796,0.22114238,84810.0,84798.0,0.1187]
[1741517470996,0.4787471,84799.0,84798.0,0.1187]
[1741517471400,0.1179694,84785.0,84784.0,0.1769515]
[1741517471802,0.1179707,84782.0,84781.0,0.1789694]
[1741517471997,0.00096001,84787.0,84781.0,0.061]
[1741517472194,0.0589845,84784.0,84781.0,0.061]
[1741517472395,0.1179694,84783.0,84782.0,0.0608]
[1741517472598,0.47898124,84783.0,84782.0,0.0608]
[1741517472798,0.53758124,84783.0,84782.0,0.0608]
[1741517472995,0.59428124,84783.0,84782.0,0.0608]
[1741517473196,0.70208124,84783.0,84782.0,0.0608]
[1741517473405,0.1179735,84780.0,84779.0,0.0017693]
[1741517473597,0.1179861,84771.0,84770.0,0.00414188]